fUSD/lending_fUSD_20240223
["ID","MTS","AMOUNT","RATE_DAILY","PERIOD"]
[314972635,1708708259664,-684.37,0.00028356,2]
[314972636,1708708259673,-674.6,0.00028356,2]
[314972637,1708708259707,-500.0,0.00028356,2]
[314972638,1708708259717,-1130.32,0.00028356,2]
[314972639,1708708259726,-1732.27,0.00028356,2]
[314972640,1708708259736,-934.36,0.00028356,2]
[314972641,1708708259746,-500.0,0.00028356,2]
[314972642,1708708259756,-206.34425209,0.00028356,2]
[314972643,1708708259765,-1204.12,0.00028356,2]
[314972644,1708708259776,-500.0,0.00028356,2]
[314972645,1708708259786,-500.0,0.00028356,2]
[314972646,1708708259795,-732.51,0.00028356,2]
[314972647,1708708259805,-1076.17,0.00028356,2]
[314972648,1708708259814,-1624.92,0.00028356,2]
[314972649,1708708259823,-1776.01,0.00028356,2]
[314972650,1708708259833,-629.8,0.00028356,2]
[314972651,1708708259842,-377.09042742,0.00028356,2]
[314972652,1708708259853,-191.87306057,0.00028356,2]
[314972653,1708708259863,-1789.17,0.00028356,2]
[314972654,1708708259873,-1115.24,0.00028356,2]
[314972655,1708708259883,-1141.39,0.00028356,2]
[314972656,1708708259893,-500.0,0.00028356,2]
[314972657,1708708259902,-2038.67,0.00028356,2]
[314972658,1708708259912,-573.83,0.00028356,2]
[314972659,1708708259921,-963.44,0.00028356,2]
[314972660,1708708259931,-678.01,0.00028356,2]
[314972661,1708708259940,-3143.61,0.00028356,2]
[314972662,1708708259950,-500.0,0.00028356,2]
[314972663,1708708259959,-579.45,0.00028356,2]
[314972664,1708708259969,-500.0,0.00028356,2]
[314972665,1708708259978,-500.0,0.00028356,2]
[314972666,1708708259987,-500.0,0.00028356,2]
[314972667,1708708259997,-11065.66378955,0.00028357,2]
[314972668,1708708260006,-4736.06516168,0.00028361,2]
[314972669,1708708260016,-150.0,0.00028377,2]
[314972670,1708708260027,-158.00337685,0.00028378,2]
[314972671,1708708260036,-150.0,0.00028396,2]
[314972672,1708708260046,-155.14487318,0.00028401,2]
[314972673,1708708260057,-391.34,0.00028403,2]
[314972674,1708708260067,-30158.05772281,0.00028408,2]
[314972675,1708708260077,-1328.22794845,0.00028409,2]
[314972676,1708708260086,-1733.96185551,0.00028431,2]
[314972677,1708708260096,-893.98275835,0.00028433,2]
[314972678,1708708260105,-5983.17749437,0.00028433,2]
[314972679,1708708260115,-150.0,0.00028434,2]
[314972680,1708708260124,-834.78673247,0.00028437,2]
[314972681,1708708260133,-155.57626885,0.00028442,2]
[314972682,1708708260143,-766.50211336,0.00028443,4]
[314972683,1708708260153,-166.16201499,0.00028486,2]
[314972684,1708708260162,-150.0,0.00028487,2]
[314972685,1708708260171,-150.0,0.0002849,2]
[314972686,1708708260181,-500.0,0.00028493,2]
[314972687,1708708260191,-500.0,0.00028493,2]
[314972688,1708708260201,-500.0,0.00028493,2]
[314972689,1708708260211,-500.0,0.00028493,2]
[314972690,1708708260220,-500.0,0.00028493,2]
[314972691,1708708260230,-518.18,0.00028493,2]
[314972692,1708708260239,-556.81,0.00028493,2]
[314972693,1708708260249,-500.0,0.00028493,2]
[314972694,1708708260259,-500.0,0.00028493,2]
[314972695,1708708260271,-500.0,0.00028493,2]
[314972696,1708708260281,-576.47,0.00028493,2]
[314972697,1708708260291,-500.0,0.00028493,2]
[314972698,1708708260300,-998.18,0.00028493,2]
[314972699,1708708260309,-167.87801701,0.00028493,2]
[314972700,1708708260318,-500.0,0.00028493,2]
[314972701,1708708260328,-500.0,0.00028493,2]
[314972702,1708708260337,-521.42,0.00028493,2]
[314972703,1708708260347,-684.37,0.00028493,2]
[314972704,1708708260356,-674.6,0.00028493,2]
[314972705,1708708260365,-500.0,0.00028493,2]
[314972706,1708708260375,-1130.32,0.00028493,2]
[314972707,1708708260384,-1732.27,0.00028493,2]
[314972708,1708708260393,-934.36,0.00028493,2]
[314972709,1708708260403,-500.0,0.00028493,2]
[314972710,1708708260413,-1204.12,0.00028493,2]
[314972711,1708708260422,-500.0,0.00028493,2]
[314972712,1708708260431,-500.0,0.00028493,2]
[314972713,1708708260440,-732.51,0.00028493,2]
[314972714,1708708260449,-1076.17,0.00028493,2]
[314972715,1708708260459,-1624.92,0.00028493,2]
[314972716,1708708260469,-1776.01,0.00028493,2]
[314972717,1708708260478,-629.8,0.00028493,2]
[314972718,1708708260487,-1789.17,0.00028493,2]
[314972719,1708708260496,-1115.24,0.00028493,2]
[314972720,1708708260506,-1141.39,0.00028493,2]
[314972721,1708708260515,-643.85772905,0.00028493,2]
[314972722,1708708260527,-2038.67,0.00028493,2]
[314972723,1708708260538,-573.83,0.00028493,2]
[314972724,1708708260548,-963.44,0.00028493,2]
[314972725,1708708260558,-678.01,0.00028493,2]
[314972726,1708708260568,-3143.61,0.00028493,2]
[314972727,1708708260579,-500.0,0.00028493,2]
[314972728,1708708260589,-579.45,0.00028493,2]
[314972729,1708708260599,-500.0,0.00028493,2]
[314972730,1708708260608,-500.0,0.00028493,2]
[314972731,1708708260618,-500.0,0.00028493,2]
[314972732,1708708260629,-360.2,0.000285,2]
[314972733,1708708260639,-445.0,0.000285,2]
[314972734,1708708260648,-150.0,0.00028505,2]
[314972735,1708708260658,-666.36,0.00028505,2]
[314972736,1708708260668,-164.08227917,0.00028507,2]
[314972737,1708708260677,-192.59378234,0.00028508,2]
[314972738,1708708260687,-150.0,0.00028516,2]
[314972739,1708708260697,-150.0,0.00028518,2]
[314972740,1708708260706,-150.0,0.00028527,2]
[314972741,1708708260716,-589.45,0.00028529,2]
[314972742,1708708260726,-156.57354395,0.00028533,2]
[314972743,1708708260735,-150.0,0.00028539,2]
[314972744,1708708260745,-353.0,0.00028541,2]
[314972745,1708708260754,-150.0,0.00028544,2]
[314972746,1708708260764,-150.0,0.00028555,2]
[314972747,1708708260776,-150.0,0.00028563,2]
[314972748,1708708260785,-150.0,0.00028581,2]
[314972749,1708708260795,-150.0,0.00028583,2]
[314972750,1708708260805,-150.0,0.00028592,2]
[314972751,1708708260814,-150.0,0.00028592,2]
[314972752,1708708260823,-4736.06516168,0.00028598,2]
[314972753,1708708260833,-155.76031539,0.00028606,2]
[314972754,1708708260842,-152.0,0.00028617,3]
[314972755,1708708260852,-500.0,0.0002863,2]
[314972756,1708708260861,-500.0,0.0002863,2]
[314972757,1708708260870,-500.0,0.0002863,2]
[314972758,1708708260879,-500.0,0.0002863,2]
[314972759,1708708260889,-500.0,0.0002863,2]
[314972760,1708708260898,-518.18,0.0002863,2]
[314972761,1708708260907,-556.81,0.0002863,2]
[314972762,1708708260917,-500.0,0.0002863,2]
[314972763,1708708260927,-500.0,0.0002863,2]
[314972764,1708708260936,-500.0,0.0002863,2]
[314972765,1708708260946,-576.47,0.0002863,2]
[314972766,1708708260955,-500.0,0.0002863,2]
[314972767,1708708260965,-998.18,0.0002863,2]
[314972768,1708708260976,-500.0,0.0002863,2]
[314972769,1708708260985,-500.0,0.0002863,2]
[314972770,1708708260995,-521.42,0.0002863,2]
[314972771,1708708261005,-684.37,0.0002863,2]
[314972772,1708708261014,-674.6,0.0002863,2]
[314972773,1708708261026,-500.0,0.0002863,2]
[314972774,1708708261035,-1130.32,0.0002863,2]
[314972775,1708708261045,-1732.27,0.0002863,2]
[314972776,1708708261054,-934.36,0.0002863,2]
[314972777,1708708261063,-500.0,0.0002863,2]
[314972778,1708708261073,-1204.12,0.0002863,2]
[314972779,1708708261083,-500.0,0.0002863,2]
[314972780,1708708261092,-500.0,0.0002863,2]
[314972781,1708708261101,-732.51,0.0002863,2]
[314972782,1708708261111,-1076.17,0.0002863,2]
[314972783,1708708261121,-1624.92,0.0002863,2]
[314972784,1708708261130,-1776.01,0.0002863,2]
[314972785,1708708261140,-629.8,0.0002863,2]
[314972786,1708708261159,-1789.17,0.0002863,2]
[314972787,1708708261170,-1115.24,0.0002863,2]
[314972788,1708708261179,-1141.39,0.0002863,2]
[314972789,1708708261189,-2038.67,0.0002863,2]
[314972790,1708708261199,-573.83,0.0002863,2]
[314972791,1708708261208,-963.44,0.0002863,2]
[314972792,1708708261219,-678.01,0.0002863,2]
[314972793,1708708261229,-3143.61,0.0002863,2]
[314972794,1708708261238,-500.0,0.0002863,2]
[314972795,1708708261249,-579.45,0.0002863,2]
[314972796,1708708261260,-500.0,0.0002863,2]
[314972797,1708708261272,-500.0,0.0002863,2]
[314972798,1708708261282,-198.00564348,0.0002863,2]
[314972799,1708708261292,-152.6064863,0.00028632,2]
[314972800,1708708261302,-168.75267509,0.00028633,2]
[314972801,1708708261312,-156.57354395,0.00028634,2]
[314972802,1708708261322,-224.72078485,0.00028637,2]
[314972803,1708708261332,-1733.96185551,0.00028644,2]
[314972804,1708708261342,-666.36,0.00028664,2]
[314972805,1708708261351,-150.0,0.00028664,2]
[314972806,1708708261362,-301.75168261,0.00028667,2]
[314972807,1708708261371,-154.98329938,0.00028668,2]
[314972808,1708708261381,-150.0,0.0002867,2]
[314972809,1708708261392,-158.44336474,0.00028671,2]
[314972810,1708708261402,-150.0,0.00028676,2]
[314972811,1708708261412,-154.98329938,0.00028682,2]
[314972812,1708708261421,-150.0,0.0002869,2]
[314972813,1708708261431,-150.0,0.00028691,2]
[314972814,1708708261441,-153.33262733,0.00028692,2]
[314972815,1708708261450,-159.51672722,0.00028695,2]
[314972816,1708708261462,-153.77814043,0.00028698,2]
[314972817,1708708261471,-153.74027557,0.00028715,2]
[314972818,1708708261481,-1687.68629731,0.00028719,2]
[314972819,1708708261490,-300.0,0.00028721,2]
[314972820,1708708261500,-155.85963337,0.00028722,2]
[314972821,1708708261509,-150.0,0.00028733,2]
[314972822,1708708261520,-155.14487318,0.00028733,2]
[314972823,1708708261529,-1328.22794845,0.00028743,2]
[314972824,1708708261541,-192.59378234,0.00028743,2]
[314972825,1708708261550,-151.54644394,0.00028749,2]
[314972826,1708708261560,-158.00337685,0.00028755,2]
[314972827,1708708261571,-150.0,0.0002876,2]
[314972828,1708708261581,-162.29119657,0.00028762,2]
[314972829,1708708261591,-192.92247977,0.00028764,7]
[314972830,1708708261601,-237.12632973,0.00028764,7]
[314972831,1708708261611,-236.3986902,0.00028764,6]
[314972832,1708708261622,-1467.6141941,0.00028764,6]
[314972833,1708708261632,-1070.32599772,0.00028764,6]
[314972834,1708708261642,-500.0,0.00028767,2]
[314972835,1708708261652,-253.07012665,0.00028767,2]
[314972836,1708708261661,-500.0,0.00028767,2]
[314972837,1708708261671,-500.0,0.00028767,2]
[314972838,1708708261680,-500.0,0.00028767,2]
[314972839,1708708261690,-500.0,0.00028767,2]
[314972840,1708708261699,-500.0,0.00028767,2]
[314972841,1708708261709,-518.18,0.00028767,2]
[314972842,1708708261718,-155.0,0.00028767,2]
[314972843,1708708261728,-556.81,0.00028767,2]
[314972844,1708708261737,-500.0,0.00028767,2]
[314972845,1708708261747,-500.0,0.00028767,2]
[314972846,1708708261757,-500.0,0.00028767,2]
[314972847,1708708261766,-576.47,0.00028767,2]
[314972848,1708708261777,-500.0,0.00028767,2]
[314972849,1708708261876,-998.18,0.00028767,2]
[314972850,1708708261886,-500.0,0.00028767,2]
[314972851,1708708261895,-500.0,0.00028767,2]
[314972852,1708708261905,-521.42,0.00028767,2]
[314972853,1708708261914,-684.37,0.00028767,2]
[314972854,1708708261923,-674.6,0.00028767,2]
[314972855,1708708261932,-500.0,0.00028767,2]
[314972856,1708708261941,-1130.32,0.00028767,2]
[314972857,1708708261950,-1732.27,0.00028767,2]
[314972858,1708708261959,-934.36,0.00028767,2]
[314972859,1708708261969,-500.0,0.00028767,2]
[314972860,1708708261978,-1204.12,0.00028767,2]
[314972861,1708708261987,-500.0,0.00028767,2]
[314972862,1708708261997,-500.0,0.00028767,2]
[314972863,1708708262006,-732.51,0.00028767,2]
[314972864,1708708262016,-1076.17,0.00028767,2]
[314972865,1708708262028,-151.0,0.00028767,7]
[314972866,1708708262037,-1624.92,0.00028767,2]
[314972867,1708708262046,-1776.01,0.00028767,2]
[314972868,1708708262054,-629.8,0.00028767,2]
[314972869,1708708262063,-1789.17,0.00028767,2]
[314972870,1708708262073,-1115.24,0.00028767,2]
[314972871,1708708262082,-1141.39,0.00028767,2]
[314972872,1708708262091,-2038.67,0.00028767,2]
[314972873,1708708262100,-573.83,0.00028767,2]
[314972874,1708708262109,-963.44,0.00028767,2]
[314972875,1708708262119,-678.01,0.00028767,2]
[314972876,1708708262128,-500.0,0.00028767,2]
[314972877,1708708262137,-3143.61,0.00028767,2]
[314972878,1708708262147,-579.45,0.00028767,2]
[314972879,1708708262157,-500.0,0.00028767,2]
[314972880,1708708262166,-500.0,0.00028767,2]
[314972881,1708708262175,-800.0,0.00028768,2]
[314972882,1708708262185,-153.31768893,0.00028773,2]
[314972883,1708708262194,-150.0,0.00028782,2]
[314972884,1708708262203,-450.0,0.00028788,2]
[314972885,1708708262212,-500.0,0.00028788,2]
[314972886,1708708262221,-500.0,0.00028788,2]
[314972887,1708708262231,-500.0,0.00028788,2]
[314972888,1708708262241,-500.0,0.00028788,2]
[314972889,1708708262250,-500.0,0.00028788,2]
[314972890,1708708262259,-500.0,0.00028788,2]
[314972891,1708708262270,-500.0,0.00028788,2]
[314972892,1708708262280,-500.0,0.00028788,2]
[314972893,1708708262289,-500.0,0.00028788,2]
[314972894,1708708262299,-500.0,0.00028788,2]
[314972895,1708708262309,-500.0,0.00028788,2]
[314972896,1708708262318,-500.0,0.00028788,2]
[314972897,1708708262328,-500.0,0.00028788,2]
[314972898,1708708262339,-500.0,0.00028788,2]
[314972899,1708708262349,-500.0,0.00028788,2]
[314972900,1708708262358,-500.0,0.00028788,2]
[314972901,1708708262367,-500.0,0.00028788,2]
[314972902,1708708262377,-500.0,0.00028788,2]
[314972903,1708708262386,-500.0,0.00028788,2]
[314972904,1708708262395,-500.0,0.00028788,2]
[314972905,1708708262404,-500.0,0.00028788,2]
[314972906,1708708262414,-500.0,0.00028788,2]
[314972907,1708708262423,-500.0,0.00028788,2]
[314972908,1708708262433,-500.0,0.00028788,2]
[314972909,1708708262443,-500.0,0.00028788,2]
[314972910,1708708262452,-500.0,0.00028788,2]
[314972911,1708708262462,-500.0,0.00028788,2]
[314972912,1708708262471,-500.0,0.00028788,2]
[314972913,1708708262481,-500.0,0.00028788,2]
[314972914,1708708262490,-500.0,0.00028788,2]
[314972915,1708708262499,-500.0,0.00028788,2]
[314972916,1708708262510,-500.0,0.00028788,2]
[314972917,1708708262521,-500.0,0.00028788,2]
[314972918,1708708262534,-500.0,0.00028788,2]
[314972919,1708708262543,-500.0,0.00028788,2]
[314972920,1708708262551,-500.0,0.00028788,2]
[314972921,1708708262560,-500.0,0.00028788,2]
[314972922,1708708262570,-500.0,0.00028788,2]
[314972923,1708708262580,-500.0,0.00028788,2]
[314972924,1708708262589,-500.0,0.00028788,2]
[314972925,1708708262598,-500.0,0.00028788,2]
[314972926,1708708262608,-500.0,0.00028788,2]
[314972927,1708708262618,-500.0,0.00028788,2]
[314972928,1708708262628,-500.0,0.00028788,2]
[314972929,1708708262637,-500.0,0.00028788,2]
[314972930,1708708262647,-500.0,0.00028788,2]
[314972931,1708708262658,-500.0,0.00028788,2]
[314972932,1708708262667,-500.0,0.00028788,2]
[314972933,1708708262677,-500.0,0.00028788,2]
[314972934,1708708262687,-500.0,0.00028788,2]
[314972935,1708708262697,-500.0,0.00028788,2]
[314972936,1708708262706,-500.0,0.00028788,2]
[314972937,1708708262716,-500.0,0.00028788,2]
[314972938,1708708262725,-500.0,0.00028788,2]
[314972939,1708708262736,-500.0,0.00028788,2]
[314972940,1708708262746,-500.0,0.00028788,2]
[314972941,1708708262755,-500.0,0.00028788,2]
[314972942,1708708262765,-500.0,0.00028788,2]
[314972943,1708708262777,-500.0,0.00028788,2]
[314972944,1708708262787,-500.0,0.00028788,2]
[314972945,1708708262796,-500.0,0.00028788,2]
[314972946,1708708262806,-500.0,0.00028788,2]
[314972947,1708708262815,-500.0,0.00028788,2]
[314972948,1708708262825,-500.0,0.00028788,2]
[314972949,1708708262835,-500.0,0.00028788,2]
[314972950,1708708262844,-500.0,0.00028788,2]
[314972951,1708708262854,-500.0,0.00028788,2]
[314972952,1708708262863,-500.0,0.00028788,2]
[314972953,1708708262873,-500.0,0.00028788,2]
[314972954,1708708262882,-500.0,0.00028788,2]
[314972955,1708708262891,-500.0,0.00028788,2]
[314972956,1708708262901,-500.0,0.00028788,2]
[314972957,1708708262911,-500.0,0.00028788,2]
[314972958,1708708262921,-500.0,0.00028788,2]
[314972959,1708708262930,-500.0,0.00028788,2]
[314972960,1708708262939,-500.0,0.00028788,2]
[314972961,1708708262948,-500.0,0.00028788,2]
[314972962,1708708262958,-500.0,0.00028788,2]
[314972963,1708708262967,-500.0,0.00028788,2]
[314972964,1708708262976,-500.0,0.00028788,2]
[314972965,1708708262985,-200.0,0.00028788,2]
[314972966,1708708262995,-800.0,0.00028788,2]
[314972967,1708708263004,-200.0,0.00028788,2]
[314972968,1708708263013,-500.0,0.00028788,2]
[314972969,1708708263024,-150.0,0.00028789,2]
[314972970,1708708263033,-187.75081345,0.00028793,4]
[314972971,1708708263043,-300.0,0.00028794,2]
[314972972,1708708263052,-485.77083841,0.00028794,4]
[314972973,1708708263061,-317.60619111,0.00028795,2]
[314972974,1708708263070,-17161.74771418,0.00028799,4]
[314972975,1708708263079,-714.30072213,0.000288,4]
[314972976,1708708263088,-17161.74771418,0.000288,4]
[314972977,1708708263097,-200.0,0.000288,2]
[314972978,1708708263106,-17161.74771418,0.00028802,4]
[314972979,1708708263115,-195.56600978,0.00028802,4]
[314972980,1708708263124,-45374.24326847,0.00028805,4]
[314972981,1708708263133,-485.77083841,0.00028806,4]
[314972982,1708708263142,-800.0,0.00028808,2]
[314972983,1708708263151,-45374.24326847,0.0002881,4]
[314972984,1708708263160,-150.0,0.0002881,2]
[314972985,1708708263169,-7889.67782725,0.00028811,4]
[314972986,1708708263179,-150.0,0.00028812,2]
[314972987,1708708263188,-2329.639,0.00028812,2]
[314972988,1708708263197,-955.0,0.00028812,2]
[314972989,1708708263208,-458.0,0.00028812,2]
[314972990,1708708263217,-1231.0,0.00028812,2]
[314972991,1708708263227,-521.148,0.00028812,2]
[314972992,1708708263238,-850.0,0.00028812,2]
[314972993,1708708263247,-252.216,0.00028812,2]
[314972994,1708708263256,-447.413,0.00028812,2]
[314972995,1708708263265,-300.0,0.00028812,2]
[314972996,1708708263280,-153.31768893,0.00028812,2]
[314972997,1708708263289,-3806.58824987,0.00028816,4]
[314972998,1708708263299,-195.56600978,0.00028817,4]
[314972999,1708708263308,-150.0,0.00028818,2]
[314973000,1708708263317,-666.36,0.00028822,2]
[314973001,1708708263327,-17161.74771418,0.00028823,4]
[314973002,1708708263335,-485.77083841,0.00028824,4]
[314973003,1708708263344,-45374.24326847,0.00028826,4]
[314973004,1708708263354,-45374.24326847,0.00028827,4]
[314973005,1708708263363,-150.0,0.00028827,2]
[314973006,1708708263372,-3806.58824987,0.00028828,4]
[314973007,1708708263382,-150.0,0.00028828,2]
[314973008,1708708263391,-153.31768893,0.0002883,2]
[314973009,1708708263401,-383.59610665,0.0002883,4]
[314973010,1708708263410,-1351.37974467,0.00028831,2]
[314973011,1708708263420,-7889.67782725,0.00028833,4]
[314973012,1708708263429,-150.0,0.00028833,2]
[314973013,1708708263438,-4736.06516168,0.00028834,2]
[314973014,1708708263447,-3806.58824987,0.00028834,4]
[314973015,1708708263456,-714.30072213,0.00028837,4]
[314973016,1708708263466,-17161.74771418,0.00028838,4]
[314973017,1708708263475,-150.0,0.00028839,2]
[314973018,1708708263484,-187.75081345,0.0002884,4]
[314973019,1708708263494,-11065.66378955,0.00028842,2]
[314973020,1708708263503,-151.0,0.00028842,2]
[314973021,1708708263512,-151.0,0.00028842,7]
[314973022,1708708263526,-151.0,0.00028842,7]
[314973023,1708708263536,-151.0,0.00028842,7]
[314973024,1708708263548,-151.0,0.00028842,7]
[314973025,1708708263558,-714.30072213,0.00028844,4]
[314973026,1708708263567,-383.59610665,0.00028844,4]
[314973027,1708708263577,-383.59610665,0.00028845,4]
[314973028,1708708263586,-444.0,0.0002885,2]
[314973029,1708708263595,-195.56600978,0.0002885,4]
[314973030,1708708263604,-187.75081345,0.00028851,4]
[314973031,1708708263614,-766.50211336,0.00028853,4]
[314973032,1708708263624,-187.75081345,0.00028853,4]
[314973033,1708708263634,-7889.67782725,0.00028853,4]
[314973034,1708708263643,-150.0,0.00028853,2]
[314973035,1708708263652,-1687.68629731,0.00028854,2]
[314973036,1708708263661,-383.59610665,0.00028861,4]
[314973037,1708708263670,-14926.4175111,0.00028863,2]
[314973038,1708708263680,-383.59610665,0.00028864,4]
[314973039,1708708263689,-156.57354395,0.00028866,2]
[314973040,1708708263699,-714.30072213,0.00028867,4]
[314973041,1708708263708,-485.77083841,0.00028871,4]
[314973042,1708708263718,-485.77083841,0.00028871,4]
[314973043,1708708263728,-156.57354395,0.00028873,2]
[314973044,1708708263737,-369.98974833,0.00028874,2]
[314973045,1708708263747,-152.6064863,0.00028876,2]
[314973046,1708708263757,-459.51295525,0.00028876,6]
[314973047,1708708263767,-150.0,0.00028877,2]
[314973048,1708708263778,-369.98974833,0.00028878,2]
[314973049,1708708263788,-150.0,0.00028879,2]
[314973050,1708708263797,-3806.58824987,0.0002888,4]
[314973051,1708708263807,-184.99487411,0.00028881,6]
[314973052,1708708263816,-675.68987228,0.00028882,6]
[314973053,1708708263826,-150.0,0.00028884,2]
[314973054,1708708263836,-150.0,0.00028884,2]
[314973055,1708708263845,-154.02083881,0.00028884,2]
[314973056,1708708263855,-42921.58147017,0.00028888,6]
[314973057,1708708263865,-195.56600978,0.00028889,4]
[314973058,1708708263874,-3806.58824987,0.00028889,4]
[314973059,1708708263884,-195.56600978,0.00028889,4]
[314973060,1708708263893,-7889.67782725,0.0002889,4]
[314973061,1708708263903,-151.0,0.00028891,7]
[314973062,1708708263912,-151.0,0.00028891,7]
[314973063,1708708263921,-151.0,0.00028891,7]
[314973064,1708708263930,-151.0,0.00028891,3]
[314973065,1708708263939,-151.0,0.00028891,3]
[314973066,1708708263949,-255.02542379,0.00028891,2]
[314973067,1708708263959,-16234.08567557,0.00028891,6]
[314973068,1708708263968,-919.02591061,0.00028893,2]
[314973069,1708708263978,-7463.2087555,0.00028895,6]
[314973070,1708708263987,-362.86118196,0.00028895,6]
[314973071,1708708263996,-7889.67782725,0.00028895,4]
[314973072,1708708264006,-500.0,0.00028896,2]
[314973073,1708708264015,-500.0,0.00028896,2]
[314973074,1708708264027,-500.0,0.00028896,2]
[314973075,1708708264037,-500.0,0.00028896,2]
[314973076,1708708264046,-500.0,0.00028896,2]
[314973077,1708708264055,-295.4089,0.00028896,2]
[314973078,1708708264064,-1000.0,0.00028896,2]
[314973079,1708708264074,-1000.0,0.00028896,2]
[314973080,1708708264083,-1000.0,0.00028896,2]
[314973081,1708708264092,-1000.0,0.00028896,2]
[314973082,1708708264101,-1000.0,0.00028896,2]
[314973083,1708708264110,-1000.0,0.00028896,2]
[314973084,1708708264119,-1000.0,0.00028896,2]
[314973085,1708708264129,-1000.0,0.00028896,2]
[314973086,1708708264137,-1000.0,0.00028896,2]
[314973087,1708708264147,-1000.0,0.00028896,2]
[314973088,1708708264155,-1000.0,0.00028896,2]
[314973089,1708708264164,-1000.0,0.00028896,2]
[314973090,1708708264174,-1000.0,0.00028896,2]
[314973091,1708708264183,-1000.0,0.00028896,2]
[314973092,1708708264193,-1000.0,0.00028896,2]
[314973093,1708708264202,-1000.0,0.00028896,2]
[314973094,1708708264212,-802.8397,0.00028896,2]
[314973095,1708708264221,-500.0,0.00028896,2]
[314973096,1708708264231,-500.0,0.00028896,2]
[314973097,1708708264240,-500.0,0.00028896,2]
[314973098,1708708264249,-500.0,0.00028896,2]
[314973099,1708708264259,-500.0,0.00028896,2]
[314973100,1708708264271,-500.0,0.00028896,2]
[314973101,1708708264280,-502.5891,0.00028896,2]
[314973102,1708708264290,-3600.82672284,0.00028898,6]
[314973103,1708708264299,-45374.24326847,0.00028899,4]
[314973104,1708708264308,-714.30072213,0.00028899,4]
[314973105,1708708264317,-1733.96185551,0.00028899,2]
[314973106,1708708264326,-187.75081345,0.00028899,4]
[314973107,1708708264336,-919.02591061,0.00028899,2]
[314973108,1708708264345,-177.60212082,0.000289,6]
[314973109,1708708264354,-1295.8751016,0.000289,2]
[314973110,1708708264363,-1328.22794845,0.00028902,2]
[314973111,1708708264372,-500.0,0.00028904,2]
[314973112,1708708264382,-500.0,0.00028904,2]
[314973113,1708708264391,-500.0,0.00028904,2]
[314973114,1708708264400,-151.0,0.00028904,7]
[314973115,1708708264409,-500.0,0.00028904,2]
[314973116,1708708264418,-500.0,0.00028904,2]
[314973117,1708708264428,-151.0,0.00028904,7]
[314973118,1708708264437,-518.18,0.00028904,2]
[314973119,1708708264447,-556.81,0.00028904,2]
[314973120,1708708264457,-500.0,0.00028904,2]
[314973121,1708708264466,-500.0,0.00028904,2]
[314973122,1708708264475,-500.0,0.00028904,2]
[314973123,1708708264484,-576.47,0.00028904,2]
[314973124,1708708264493,-500.0,0.00028904,2]
[314973125,1708708264502,-998.18,0.00028904,2]
[314973126,1708708264511,-500.0,0.00028904,2]
[314973127,1708708264521,-220.66130688,0.00028904,2]
[314973128,1708708264531,-521.42,0.00028904,2]
[314973129,1708708264540,-684.37,0.00028904,2]
[314973130,1708708264551,-674.6,0.00028904,2]
[314973131,1708708264561,-500.0,0.00028904,2]
[314973132,1708708264571,-1130.32,0.00028904,2]
[314973133,1708708264580,-1732.27,0.00028904,2]
[314973134,1708708264590,-934.36,0.00028904,2]